bitfinex-derivatives/quotes_ETHF0:USTF0_20250701
["timestamp","ask_amount","ask_price","bid_price","bid_amount"]
[1751382335826,0.82414,2426.0,2425.9,0.82413]
[1751382336324,1.4359,2426.1,2425.4,59.389]
[1751382336524,0.82423,2425.7,2425.6,0.82426]
[1751382336922,0.82424,2425.7,2425.5,0.82427]
[1751382337131,5.86641439,2425.8,2425.4,0.8243]
[1751382337330,0.82428,2425.6,2425.5,0.82428]
[1751382337530,0.8243,2425.5,2425.4,0.8243]
[1751382337730,0.8243,2425.5,2425.2,1.3991]
[1751382337934,0.82437,2425.3,2425.2,12.119]
[1751382338132,0.82435,2425.4,2425.3,0.82435]
[1751382338436,2.06067,2425.6,2425.0,1.2403]
[1751382338624,0.8244,2425.2,2425.1,0.8244]
[1751382339431,1.3775,2425.5,2425.0,13.3593]
[1751382339631,0.82438,2425.3,2425.2,0.82438]
[1751382339831,0.82435,2425.4,2425.3,0.82435]
[1751382340033,1.3775,2425.5,2425.1,12.119]
[1751382340234,0.82442,2425.2,2425.1,12.94342]
[1751382340424,0.82442,2425.2,2425.1,12.119]
[1751382340625,0.82443,2425.1,2425.0,14.18374]
[1751382340828,0.82441,2425.2,2425.1,0.82442]
[1751382341433,0.82443,2425.1,2425.0,14.18374]
[1751382341634,0.82441,2425.2,2425.1,0.82442]
[1751382341838,0.82443,2425.1,2425.0,14.18374]
[1751382342036,0.8244,2425.2,2425.1,0.82441]
[1751382342628,1.3775,2425.5,2425.0,13.3593]
[1751382342832,7.92676439,2426.0,2425.0,13.3593]
[1751382343034,0.8243,2425.5,2425.1,1.3557]
[1751382343236,2.3599,2425.9,2425.2,5.86641439]
[1751382343537,0.82422,2425.7,2425.5,0.82427]
[1751382343731,0.82421,2425.8,2425.6,0.82426]
[1751382343935,0.82421,2425.8,2425.7,0.82422]
[1751382344134,0.82421,2425.8,2425.3,27.3967]
[1751382344336,0.82421,2425.8,2425.7,0.82422]
[1751382344532,4.52675682,2426.7,2425.3,27.3967]
[1751382344533,0.07177352,2426.4,2426.3,0.82402]
[1751382344834,2.05946,2427.0,2426.3,38.984]
[1751382345028,0.82395,2426.5,2426.4,39.6145]
[1751382345232,2.05954,2426.9,2426.4,39.6145]
[1751382345434,0.82398,2426.4,2426.3,2.3928]
[1751382345633,0.82398,2426.4,2426.3,1.1799]
[1751382348141,2.05945,2427.1,2426.3,1.1799]
[1751382348142,5.86641439,2427.1,2426.3,1.1799]
[1751382348331,1.2027,2427.1,2426.5,5.86641439]
[1751382348529,1.2027,2427.1,2426.8,5.86641439]
[1751382348736,2.33286616,2427.4,2426.9,12.94082]
[1751382349032,1.00591495,2427.3,2427.2,0.82372]
[1751382349230,1.00591495,2427.3,2427.2,5.86641439]
[1751382349432,0.27368616,2427.4,2427.1,5.86641439]
[1751382349740,0.82375,2427.1,2427.0,39.4499]
[1751382350236,2.05929,2427.3,2426.8,38.222]
[1751382350442,0.82382,2426.9,2426.8,38.222]
[1751382350934,0.82386,2426.8,2426.6,2.583]
[1751382351135,2.0593,2427.2,2426.7,39.03886]
[1751382351335,2.0593,2427.2,2426.6,2.583]
[1751382351336,2.0593,2427.2,2426.6,1.2216]
[1751382351538,0.82402,2426.3,2426.2,59.379]
[1751382351739,0.82402,2426.3,2426.2,97.611]
[1751382352033,0.82402,2426.3,2426.2,85.489]
[1751382353639,0.82402,2426.3,2426.2,59.379]
[1751382353839,0.82402,2426.3,2426.2,85.487]
[1751382354844,0.82402,2426.3,2426.2,86.8621]
[1751382355441,0.82402,2426.3,2426.2,60.7541]
[1751382355644,0.82402,2426.3,2426.2,97.567]
[1751382357045,0.82402,2426.3,2426.2,59.379]
[1751382357251,0.82402,2426.3,2426.2,98.9126]
[1751382357641,0.82402,2426.3,2426.2,97.554]
[1751382358248,1.1413,2426.9,2426.2,97.554]
[1751382358249,6.14010055,2427.4,2426.2,98.9126]
[1751382358449,0.82392,2426.6,2426.5,6.69034439]
[1751382358740,0.82402,2426.3,2426.2,60.7376]
[1751382359042,5.86641439,2426.8,2426.2,98.9096]
[1751382359043,0.82401,2426.4,2426.2,98.9096]
[1751382359241,2.05968,2426.8,2426.2,98.9096]
[1751382359441,0.824,2426.4,2426.3,0.824]
[1751382359641,0.824,2426.4,2426.3,2.2124]
[1751382359836,0.824,2426.4,2426.3,1.3884]
[1751382360043,0.82402,2426.3,2426.2,71.493]
[1751382360244,0.82402,2426.3,2426.2,97.561]
[1751382360444,0.82402,2426.3,2426.2,98.38506]
[1751382360947,3.26509,2426.8,2426.2,98.9494]
[1751382360948,2.05964,2426.8,2426.2,98.9494]
[1751382361249,0.82394,2426.6,2426.2,98.9494]
[1751382361551,2.05949,2427.0,2426.3,9.31484439]
[1751382361740,3.24722,2427.3,2426.4,26.073]
[1751382361941,4.68952,2427.3,2426.5,1.3884]
[1751382362146,0.82387,2426.8,2426.7,0.82386]
[1751382362347,2.05955,2426.9,2426.4,1.1349]
[1751382362548,0.82393,2426.6,2426.5,39.01292]
[1751382363348,0.82389,2426.7,2426.6,0.82389]
[1751382363549,0.82392,2426.6,2426.5,0.82394]
[1751382363751,0.82392,2426.6,2426.5,39.00594]
[1751382363950,0.82387,2426.8,2426.7,0.82386]
[1751382364249,0.82392,2426.6,2426.5,12.118]
[1751382364453,0.82391,2426.7,2426.5,38.186]
[1751382364746,0.82392,2426.6,2426.5,38.186]
[1751382365052,0.82388,2426.8,2426.7,0.82386]
[1751382365253,0.82388,2426.8,2426.7,26.93386]
[1751382365451,0.82388,2426.8,2426.7,26.93389]
[1751382365647,0.82385,2426.8,2426.7,26.93389]
[1751382365848,2.33283616,2427.4,2426.7,26.11]
[1751382366044,2.33283616,2427.4,2427.1,0.82372]
[1751382366045,0.82374,2427.2,2427.1,0.82372]
[1751382366246,0.82374,2427.2,2427.1,26.126]
[1751382366848,0.82374,2427.2,2427.1,26.94975]
[1751382367349,0.82382,2427.0,2426.8,1.1262]
[1751382367555,0.82391,2426.7,2426.6,0.82388]
[1751382367747,0.82382,2427.0,2426.9,0.82378]
[1751382368054,0.82382,2426.9,2426.8,0.82383]
[1751382368250,0.82382,2426.9,2426.8,26.95583]
[1751382368448,0.82382,2426.9,2426.8,0.82383]
[1751382368645,0.82382,2426.9,2426.8,26.95583]
[1751382368956,0.82379,2427.1,2427.0,0.82376]
[1751382369146,0.82382,2427.0,2426.9,0.82379]
[1751382369351,0.82391,2426.7,2426.6,0.82388]
[1751382369655,0.82386,2426.8,2426.7,0.82385]
[1751382369853,0.82384,2426.9,2426.8,0.82385]
[1751382370053,0.82377,2427.1,2427.0,0.82374]
[1751382370252,0.82377,2427.1,2427.0,26.95974]
[1751382370454,0.82377,2427.1,2427.0,26.136]
[1751382371357,0.82377,2427.1,2427.0,26.95978]
[1751382371551,0.82377,2427.1,2427.0,0.82378]
[1751382371744,0.82377,2427.1,2427.0,26.96778]
[1751382372248,0.82377,2427.1,2427.0,26.144]
[1751382372848,0.82377,2427.1,2427.0,26.96778]
[1751382373245,7.31051439,2427.3,2427.0,26.132]
[1751382373457,0.8239,2426.8,2426.7,12.94086]
[1751382373659,0.8239,2426.8,2426.7,39.05186]
[1751382374555,0.8239,2426.8,2426.5,2.05982]
[1751382374556,0.82395,2426.6,2426.5,0.82391]
[1751382374750,0.82395,2426.6,2426.5,39.04891]
[1751382374950,2.05956,2426.9,2426.4,1.1349]
[1751382374951,0.82395,2426.5,2426.4,1.1349]
[1751382375152,0.82395,2426.5,2426.4,28.05385]
[1751382375659,0.82394,2426.6,2426.5,0.82391]
[1751382376156,0.82395,2426.5,2426.4,1.95886]
[1751382376356,0.82395,2426.5,2426.4,28.05886]
[1751382376566,0.82395,2426.5,2426.4,28.05486]
[1751382376954,0.82395,2426.5,2426.4,27.2309]
[1751382377159,0.82395,2426.5,2426.4,28.05489]
[1751382377453,0.82395,2426.5,2426.4,28.05189]
[1751382377656,0.82399,2426.4,2426.3,0.824]
[1751382377858,0.82399,2426.4,2426.3,26.907]
[1751382378056,0.82396,2426.6,2426.5,0.82392]
[1751382378254,1.84003123,2426.6,2426.5,0.82392]
[1751382378856,2.05933,2427.2,2426.5,7.05989]
[1751382379058,1.83998905,2427.1,2427.0,0.82378]
[1751382379961,1.83998905,2427.1,2426.9,26.081]
[1751382379962,0.82378,2427.0,2426.9,0.82379]
[1751382380165,1.83998905,2427.0,2426.9,26.89579]
[1751382380361,1.01620905,2427.0,2426.9,26.89579]
[1751382380561,0.82378,2427.1,2427.0,0.82375]
[1751382380762,1.01642379,2427.2,2427.0,0.82375]
[1751382380958,1.01642379,2427.1,2427.0,0.82375]
[1751382381158,0.82374,2427.2,2427.1,0.82375]
[1751382381354,1.84021284,2427.2,2427.1,0.82375]
[1751382381961,0.82378,2427.1,2427.0,0.82376]
[1751382382764,2.20564,2427.2,2427.1,0.82375]
[1751382382959,3.22204314,2427.2,2427.1,0.82375]
[1751382384557,0.82371,2427.3,2426.9,28.13155]
[1751382384762,0.27368616,2427.4,2427.3,0.82368]
[1751382386561,0.27368616,2427.4,2427.2,2.00358]
[1751382386868,1.09735616,2427.4,2427.3,0.82368]
[1751382387368,0.27368616,2427.4,2427.3,0.82368]
[1751382388162,0.27368616,2427.4,2427.3,2.06408]
[1751382388364,0.27368616,2427.4,2427.3,3.37978]
[1751382389067,0.8235,2427.9,2427.5,2.05902]
[1751382389265,0.8235,2427.9,2427.8,0.82349]
[1751382389466,1.1856,2428.0,2427.9,0.82348]
[1751382389667,3.44445,2428.0,2427.9,0.82348]
[1751382390262,2.05803,2428.7,2427.5,38.152]
[1751382390463,0.82343,2428.2,2428.1,0.82339]
[1751382390662,0.8235,2427.9,2427.8,38.97848]
[1751382390861,0.82346,2428.0,2427.9,0.82345]
[1751382391062,3.37793,2428.1,2428.0,0.82345]
[1751382391268,1.1856,2428.3,2428.2,0.82338]
[1751382391663,2.19902599,2428.3,2428.2,0.82338]
[1751382392266,2.05805,2428.7,2428.3,0.82332]
[1751382392466,2.05828,2428.4,2428.1,0.82339]
[1751382392668,0.82343,2428.2,2428.1,0.82339]
[1751382392964,1.3181,2428.3,2428.2,0.82338]
[1751382393168,1.1278,2428.5,2428.1,2.05852]
[1751382393470,1.95112,2428.5,2428.4,0.82331]
[1751382393664,3.31162,2428.5,2428.4,0.82331]
[1751382393865,0.82341,2428.2,2428.1,0.82339]
[1751382394063,2.05807,2428.7,2427.7,7.05101439]
[1751382394064,5.86641439,2429.4,2428.0,5.86641439]
[1751382394269,0.82324,2428.7,2428.6,0.82322]
[1751382394664,0.82324,2428.7,2428.1,3.18988]
[1751382394665,3.41853,2428.7,2428.1,3.18988]
[1751382394966,2.5626,2428.7,2428.6,0.82324]
[1751382395268,0.82316,2428.9,2428.8,0.82315]
[1751382395466,0.82319,2428.8,2428.7,0.82319]
[1751382395858,0.82324,2428.7,2428.6,0.82323]
[1751382396058,0.82307,2429.2,2428.7,2.05803]
[1751382396260,0.40270971,2429.5,2429.0,0.82309]
[1751382396261,0.82308,2429.1,2429.0,0.82309]
[1751382396464,2.05756,2429.3,2428.7,1.1586]
[1751382396666,0.82312,2429.0,2428.7,13.2616]
[1751382396866,0.82317,2428.8,2428.7,13.2616]
[1751382397370,0.8232,2428.8,2428.7,0.82319]
[1751382397570,0.82321,2428.7,2428.6,26.96623]
[1751382397965,0.82317,2428.9,2428.8,0.82316]
[1751382398165,0.82312,2429.0,2428.9,0.82314]
[1751382398371,0.8231,2429.1,2429.0,0.82308]
[1751382398567,0.82314,2428.9,2428.8,12.103]
[1751382398871,7.92394439,2429.3,2428.7,27.3635]
[1751382398872,0.8232,2428.8,2428.7,0.82319]
[1751382399073,0.82317,2428.9,2428.8,0.82316]
[1751382399372,0.82316,2428.9,2428.8,0.82315]
[1751382399574,3.47072,2429.2,2428.6,38.252]
[1751382399770,0.82316,2428.9,2428.8,0.82317]
[1751382399973,0.82324,2428.6,2428.5,39.4774]
[1751382400174,0.82323,2428.7,2428.6,0.82324]
[1751382400474,0.82324,2428.6,2428.5,1.1944]
[1751382400676,0.82324,2428.6,2428.5,39.4774]
[1751382400973,0.82324,2428.6,2427.1,4.09881909]
[1751382400974,0.82337,2428.3,2428.2,39.10235]
[1751382401164,0.82334,2428.4,2428.3,0.82332]
[1751382401370,0.82334,2428.3,2428.2,12.101]
[1751382401677,0.82338,2428.2,2428.1,1.96148]
[1751382401880,0.82338,2428.2,2428.1,39.4101]
[1751382402070,0.82338,2428.3,2428.2,0.82336]
[1751382402472,0.82338,2428.2,2428.1,39.4101]
[1751382402673,3.21015467,2430.1,2428.1,39.4071]
[1751382402873,2.0576,2429.2,2428.7,0.82319]
[1751382403076,2.05777,2429.0,2428.5,26.311]
[1751382403279,0.82324,2428.6,2428.5,0.82326]
[1751382403577,0.82324,2428.6,2428.5,0.82328]
[1751382403781,0.82324,2428.6,2428.2,2.05843]
[1751382403782,2.05795,2428.8,2428.2,2.05842]
[1751382403976,1.429,2428.7,2428.1,2.5324]
[1751382404176,1.97577,2428.9,2428.8,0.82317]
[1751382404576,0.82323,2428.7,2428.6,0.82322]
[1751382404874,2.2522,2428.8,2428.7,0.82321]
[1751382405380,0.82324,2428.7,2428.6,0.82321]
[1751382405580,2.19134,2428.7,2428.6,0.82321]
[1751382405881,1.3681,2428.7,2428.1,3.19661]
[1751382406083,0.82333,2428.4,2428.3,0.8233]
[1751382406582,0.82333,2428.4,2428.1,1.1381]
[1751382406583,5.86641439,2428.4,2428.1,1.1381]
[1751382406887,2.19147,2428.3,2428.2,0.82336]
[1751382408178,0.82338,2428.2,2428.1,1.1381]
[1751382408379,2.25468,2428.2,2428.1,1.96151]
[1751382408580,0.82338,2428.2,2428.1,1.96151]
[1751382408883,0.82338,2428.2,2428.1,0.82341]
[1751382409777,0.82341,2428.1,2428.0,0.82343]
[1751382409973,1.4313,2428.2,2427.9,1.1537]
[1751382410179,0.82345,2428.0,2427.9,1.1537]
[1751382410381,1.4313,2428.2,2427.7,13.225]
[1751382410382,2.25469,2428.2,2428.1,0.82341]
[1751382411083,1.4313,2428.2,2427.7,1.125]
[1751382411281,0.82348,2427.9,2427.8,27.07749]
[1751382411482,0.82344,2428.1,2428.0,0.82343]
[1751382411682,0.8235,2427.9,2427.8,0.82347]
[1751382412487,0.82351,2427.8,2427.7,1.94852]
[1751382412785,0.82344,2428.1,2428.0,0.82343]
[1751382413288,0.82348,2428.0,2427.9,0.82346]
[1751382413684,0.82343,2428.1,2428.0,0.82343]
[1751382414188,0.82344,2428.1,2428.0,0.8234]
[1751382415389,0.82349,2428.0,2427.9,0.82345]
[1751382415590,17.96658,2428.3,2428.0,0.82341]
[1751382415591,0.82345,2428.1,2428.0,0.82341]
[1751382418189,16.73157,2428.3,2428.2,0.82338]
[1751382418388,0.82342,2428.2,2428.1,0.82338]
[1751382418789,15.9082,2428.3,2427.7,3.2939]
[1751382418790,0.82346,2428.1,2428.0,0.82342]
[1751382419285,0.82349,2428.0,2427.9,0.82345]
[1751382419490,0.82344,2428.1,2428.0,0.82343]
[1751382419688,0.82347,2428.0,2427.9,0.82346]
[1751382420191,0.82348,2428.0,2427.9,0.82345]
[1751382420387,0.82344,2428.1,2428.0,0.82341]
[1751382420595,2.27174,2428.1,2428.0,0.82341]
[1751382420997,1.4483,2428.1,2427.7,1.2351]
[1751382421191,1.4483,2428.1,2427.8,0.82347]
[1751382421397,0.82347,2428.0,2427.9,0.82345]
[1751382421698,1.4483,2428.1,2427.6,1.195]
[1751382421891,0.82361,2427.6,2427.5,0.82358]
[1751382422398,0.82362,2427.6,2427.5,0.8236]
[1751382422988,0.82365,2427.4,2427.3,2.02046]
[1751382423393,0.82364,2427.5,2427.4,0.82361]
[1751382424299,0.82365,2427.4,2427.3,2.02046]
[1751382425298,3.70724,2427.5,2427.4,0.82362]
[1751382425505,2.8836,2427.5,2427.4,0.82362]
[1751382426003,0.82349,2428.0,2427.9,0.82346]
[1751382426302,0.82351,2427.9,2427.8,0.82349]
[1751382426501,1.84616075,2427.9,2427.8,0.82349]
[1751382426701,0.82346,2428.0,2427.9,0.82348]
[1751382426896,0.82346,2428.0,2427.6,2.0589]
[1751382426897,0.82352,2427.9,2427.8,0.82349]
[1751382427094,1.8462599,2427.9,2427.8,0.82349]
[1751382427294,0.82355,2427.8,2427.7,0.82352]
[1751382427891,0.82351,2427.9,2427.8,0.82348]
[1751382428304,1.84636693,2427.9,2427.8,0.82348]
[1751382428803,0.82358,2427.7,2427.6,0.82355]
[1751382429103,2.15474,2427.8,2427.7,0.82355]
[1751382429300,0.82354,2427.8,2427.7,0.82355]
[1751382429702,1.84772832,2427.8,2427.7,0.82355]
[1751382429900,0.82354,2427.8,2427.7,0.82355]
[1751382430602,0.82355,2427.8,2427.7,0.82352]
[1751382431004,0.82345,2428.0,2427.9,0.82348]
[1751382431303,0.82348,2427.9,2427.8,2.03079]
[1751382431896,0.82348,2427.9,2427.8,1.2073]
[1751382432095,0.82357,2427.7,2427.2,2.05922]
[1751382432300,0.82357,2427.7,2427.6,0.82354]
[1751382432495,12.9895,2427.9,2427.8,0.82351]
[1751382432701,0.82348,2427.9,2427.8,0.82351]
[1751382433200,0.82354,2427.8,2427.5,2.05901]
[1751382433402,0.82354,2427.8,2427.7,0.82351]
[1751382434908,0.8236,2427.7,2427.6,0.82355]
[1751382435408,0.82365,2427.5,2427.4,0.82362]
[1751382435604,0.82365,2427.4,2427.3,1.2073]
[1751382436001,7.03331439,2427.5,2427.1,0.82374]
[1751382436207,2.22377,2427.4,2427.3,0.82368]
[1751382436702,0.82372,2427.3,2427.2,0.82369]
[1751382436904,0.82375,2427.2,2427.1,0.82373]
[1751382437107,0.82375,2427.2,2427.1,0.82372]
[1751382437605,0.82375,2427.1,2427.0,2.05306]
[1751382438199,0.82375,2427.1,2427.0,1.2293]
[1751382438406,7.92583439,2427.1,2426.5,3.28546811]
[1751382438705,0.82402,2426.4,2426.2,4.61766811]
[1751382439010,0.82402,2426.4,2426.3,1.1767]
[1751382439204,0.82406,2426.2,2426.1,1.169]
[1751382439508,0.82409,2426.1,2426.0,1.1767]
[1751382440209,0.82409,2426.1,2426.0,2.00082]
[1751382440409,0.82409,2426.1,2426.0,1.1767]
[1751382441308,0.82419,2425.8,2425.7,1.169]
[1751382441507,0.82419,2425.8,2425.7,0.82421]
[1751382441816,0.82426,2425.6,2425.5,0.82426]
[1751382442208,0.82429,2425.5,2425.4,3.19552]
[1751382442513,0.82429,2425.5,2425.4,1.1767]
[1751382443015,2.06083,2425.4,2424.8,1.1945]
[1751382443312,0.82451,2424.9,2424.6,1.1421]
[1751382443507,0.82445,2425.1,2424.7,1.3893]
[1751382443710,7.03391439,2425.5,2425.1,0.82442]
[1751382444010,0.82436,2425.3,2425.1,0.82442]
[1751382444212,0.82436,2425.3,2425.1,0.8244]
[1751382444413,0.82436,2425.3,2425.2,0.8244]
[1751382444613,0.82436,2425.3,2424.7,3.45066]
[1751382444810,0.82437,2425.3,2424.8,2.06134]
[1751382445013,0.82441,2425.2,2424.9,1.4434]
[1751382445208,0.82437,2425.3,2425.2,0.82439]
[1751382445805,0.82441,2425.2,2425.0,0.82444]
[1751382446016,13.5557,2425.4,2425.0,0.82446]
[1751382446216,0.82446,2425.0,2424.9,0.82449]
[1751382446612,0.82457,2424.7,2424.6,1.1421]
[1751382446915,7.29851439,2424.9,2424.5,0.82463]
[1751382447117,7.29851439,2424.9,2424.3,1.1945]
[1751382447118,0.82464,2424.5,2424.4,0.82465]
[1751382447312,9.35980439,2424.9,2424.2,1.1591]
[1751382447513,0.82464,2424.5,2424.4,0.82466]
[1751382447715,0.82462,2424.6,2424.5,0.82463]
[1751382447916,4.12412,2424.6,2424.5,0.82463]
[1751382448321,3.2995,2424.6,2424.5,0.82463]
[1751382449614,0.8244,2425.2,2424.5,0.82463]
[1751382449615,12.175,2425.2,2424.5,0.82463]
[1751382449812,0.82453,2424.8,2424.6,1.4275]
[1751382450006,0.82459,2424.7,2424.2,1.1591]
[1751382450208,0.82461,2424.6,2424.4,0.82464]
[1751382450415,0.82467,2424.4,2424.2,1.1591]
[1751382450617,0.8247,2424.4,2424.3,0.82469]
[1751382450809,2.06142,2424.7,2424.2,1.1591]
[1751382450810,7.92795439,2424.6,2424.2,1.1591]
[1751382451012,7.19821439,2424.6,2424.2,1.1591]
[1751382451212,2.15642,2424.6,2424.5,0.82463]
[1751382451427,0.82464,2424.5,2424.4,0.82465]
[1751382451717,12.177,2424.6,2424.5,0.82463]
[1751382451919,13.0016,2424.6,2424.5,0.82463]
[1751382452420,1.2035,2424.7,2424.6,0.8246]
[1751382452720,0.82461,2424.6,2424.5,0.82461]
[1751382453616,18.04341439,2424.6,2424.2,1.1591]
[1751382453808,18.04341439,2424.6,2424.2,1.98381]
[1751382453809,0.82469,2424.4,2424.2,1.98381]
[1751382454008,2.24076,2424.5,2424.3,0.8247]
[1751382454211,0.82467,2424.4,2424.3,0.8247]
[1751382454411,0.8247,2424.3,2424.2,1.98381]
[1751382454819,0.8247,2424.3,2423.9,1.37]
[1751382454820,2.06185,2424.2,2423.3,14.23957]
[1751382455125,0.82494,2423.6,2423.5,0.82494]
[1751382455420,2.06193,2424.1,2423.4,1.1856]
[1751382455617,0.82478,2424.1,2424.0,0.82478]
[1751382455816,2.06178,2424.3,2423.6,2.06232]
[1751382456014,0.82483,2424.0,2423.9,0.82483]
[1751382456222,0.82485,2423.9,2423.8,0.82485]
[1751382456422,3.47788,2424.3,2423.7,1.37]
[1751382456423,0.82483,2424.0,2423.9,0.82483]
[1751382456618,1.4161,2424.3,2423.8,2.06219]
[1751382456924,12.125,2424.3,2424.2,0.82474]
[1751382457221,3.29221,2424.5,2423.9,1.3373]
[1751382457520,0.82479,2424.1,2424.0,0.82479]
[1751382457915,13.5062,2424.4,2423.5,2.06244]
[1751382457916,0.82486,2423.9,2423.5,2.06244]
[1751382458120,0.82488,2423.8,2423.7,0.82488]
[1751382458711,0.82496,2423.6,2423.5,0.82495]
[1751382458912,0.82497,2423.5,2423.4,2.16228]
[1751382459127,0.825,2423.4,2423.3,1.1658]
[1751382459325,0.825,2423.4,2423.3,1.99084]
[1751382459520,0.82499,2423.5,2423.4,0.82498]
[1751382459817,0.8249,2423.8,2423.7,0.82489]
[1751382460123,0.8249,2423.8,2423.4,2.06252]
[1751382460124,0.82492,2423.7,2423.6,0.82491]
[1751382460322,7.92851439,2423.9,2423.3,1.1658]
[1751382460616,0.825,2423.4,2423.3,1.99081]
[1751382460822,0.82507,2423.3,2423.2,0.82506]
[1751382461019,7.92877439,2423.6,2421.9,0.40478213]
[1751382461221,7.92904439,2423.3,2422.6,1.1309]
[1751382461423,0.82519,2422.9,2422.8,0.82519]
[1751382461816,0.82518,2422.9,2422.8,0.82518]
[1751382462020,0.82524,2422.7,2422.6,1.1309]
[1751382462219,2.06277,2423.1,2422.6,1.95618]
[1751382462417,0.82524,2422.7,2422.6,1.1309]
[1751382462625,2.06303,2422.8,2422.3,1.3567]
[1751382462817,2.06322,2422.6,2422.1,1.2171]
[1751382463017,0.82541,2422.2,2422.1,1.2171]
[1751382463425,0.82543,2422.2,2422.1,0.82543]
[1751382463625,0.82532,2422.5,2422.4,0.82532]
[1751382463921,1.0319,2422.7,2422.0,9.13206439]
[1751382464222,0.82532,2422.5,2422.4,0.82531]
[1751382464425,0.82532,2422.5,2422.1,3.50029]
[1751382464426,0.8253,2422.6,2422.5,0.82529]
[1751382464730,0.82532,2422.5,2422.4,0.82532]
[1751382465024,0.82532,2422.5,2422.0,9.13208439]
[1751382465025,0.82538,2422.3,2422.0,1.202]
[1751382465225,0.82533,2422.5,2422.0,1.202]
[1751382465427,0.82533,2422.5,2422.1,1.4367]
[1751382465822,2.8518,2422.4,2422.1,1.4367]
[1751382466025,5.86641439,2422.2,2420.8,0.32911595]
[1751382466228,0.82578,2421.2,2421.0,1.4205]
[1751382466523,0.82578,2421.2,2421.0,0.82579]
[1751382466730,0.82582,2421.0,2420.9,1.1729]
[1751382467029,7.93058439,2421.5,2420.9,1.1729]
[1751382467230,0.82582,2421.0,2420.9,1.1729]
[1751382467523,0.8257,2421.4,2421.2,0.82572]
[1751382467723,7.93046439,2421.6,2421.0,2.6083]
[1751382467917,0.82579,2421.1,2421.0,1.1878]
[1751382468121,2.06439,2421.2,2420.6,1.4205]
[1751382468324,2.06439,2421.2,2420.1,1.1763]
[1751382468325,0.8261,2420.2,2420.1,1.1763]
[1751382468622,5.86641439,2420.7,2420.1,1.1763]
[1751382468827,12.135,2421.0,2420.3,2.06516]
[1751382469020,3.7481,2421.1,2420.3,2.06516]
[1751382469021,3.7481,2421.1,2420.4,1.3323]
[1751382469219,2.20984,2421.0,2420.4,1.3323]
[1751382469420,2.06427,2421.4,2421.1,0.82578]
[1751382469421,0.82574,2421.3,2421.1,0.82578]
[1751382469624,0.82574,2421.3,2421.2,0.82575]
[1751382469625,0.82572,2421.3,2421.2,0.82575]
[1751382469824,0.82581,2421.1,2420.6,7.19871439]
[1751382470024,0.82592,2420.7,2420.6,1.3323]
[1751382470324,7.93085439,2421.2,2420.6,1.3323]
[1751382470325,1.384,2421.0,2420.6,1.3323]
[1751382470525,5.86641439,2420.9,2420.2,1.1978]
[1751382470822,0.82594,2420.7,2420.2,1.1978]
[1751382471028,5.86641439,2420.9,2420.3,1.3323]
[1751382471329,5.86641439,2420.9,2420.5,0.82597]
[1751382471628,0.82593,2420.7,2420.3,1.3323]
[1751382472128,0.82599,2420.5,2420.4,0.82601]
[1751382472326,0.82593,2420.7,2420.3,1.3323]
[1751382472624,0.82595,2420.7,2420.6,0.82595]
[1751382472829,0.82591,2420.8,2420.3,1.3323]
[1751382473025,0.82593,2420.7,2420.6,0.82594]
[1751382473421,2.20985,2421.0,2420.8,0.82586]
[1751382473625,0.82583,2421.0,2420.9,0.82584]
[1751382473826,0.8259,2420.8,2420.7,0.82591]
[1751382474030,1.0325,2421.1,2420.6,2.06488]
[1751382474329,1.0325,2421.1,2421.0,0.82582]
[1751382476228,7.93020439,2422.0,2421.6,0.82558]
[1751382476526,20.07020439,2422.0,2421.2,2.06439]
[1751382476828,0.82565,2421.6,2421.5,0.82564]
[1751382477124,0.82564,2421.6,2421.5,0.82563]
[1751382477529,1.3545,2421.8,2421.3,2.06428]
[1751382477724,0.82561,2421.7,2421.6,0.82561]
[1751382478124,0.82567,2421.5,2421.4,0.82566]
[1751382478329,1.3545,2421.8,2421.3,1.3851]
[1751382478731,3.41841,2421.8,2421.0,2.06451]
[1751382478931,0.82568,2421.5,2421.4,0.82568]
[1751382479728,1.215,2421.7,2421.5,0.82563]
[1751382479729,0.82564,2421.6,2421.5,0.82563]
[1751382479932,0.82578,2421.2,2421.1,0.82577]
[1751382480319,0.82578,2421.2,2420.5,7.19391439]
[1751382480320,5.86641439,2421.4,2420.6,2.06491]
[1751382480525,0.82588,2420.9,2420.8,0.82588]
[1751382480728,2.06448,2421.1,2420.5,1.3275]
[1751382480929,3.42818,2421.1,2420.5,1.3275]
[1751382481227,0.82599,2420.6,2420.5,0.82597]
[1751382481524,0.82595,2420.7,2420.6,0.82592]
[1751382481728,5.86641439,2420.9,2420.1,1.176]
[1751382481729,7.93107439,2420.9,2420.1,1.176]
[1751382481926,0.82604,2420.4,2420.3,0.82603]
[1751382482130,5.86641439,2420.7,2420.2,2.06525]
[1751382482330,0.82603,2420.5,2420.4,0.82601]
[1751382482931,0.82606,2420.4,2420.3,0.82604]
[1751382483127,7.27091439,2420.7,2420.1,1.176]
[1751382483321,0.82604,2420.5,2420.4,0.826]
[1751382483522,7.27091439,2420.7,2420.3,0.82604]
[1751382483523,0.82606,2420.4,2420.3,0.82604]
[1751382484028,0.82602,2420.5,2420.4,0.826]
[1751382484332,0.82601,2420.5,2420.4,0.82599]
[1751382484724,0.82606,2420.4,2420.3,0.82604]
[1751382485130,2.06491,2420.6,2420.1,3.39961]
[1751382485131,0.8261,2420.2,2420.1,3.39961]